[Event "Titled Tuesday Blitz August 22 Early 2023"]
[White "Tanwir, Furqan"]
[Black "Veiga, Jose Francisco R P Neves"]
[WhiteFideId "2023962"]
[BlackFideId "1930087"]
[WhiteElo "2345"]
[BlackElo "2636"]
[Result "1-0"]
[Round "3"]
[TimeControl "180+1"]
[Date "2023.08.22"]
[WhiteClock "0:00:47"]
[BlackClock "0:00:06"]
[Board "206"]

1. e4 {[%clk 0:03:00]}  Nc6 {[%clk 0:03:00]} 2. d4 {[%clk 0:03:00]}  d5 {[%clk 0:03:00]} 3. e5 {[%clk 0:02:59]}  Bf5 {[%clk 0:03:00]} 4. Ne2 {[%clk 0:02:58]}  e6 {[%clk 0:03:00]} 5. Ng3 {[%clk 0:02:58]}  Bg6 {[%clk 0:03:00]} 6. h4 {[%clk 0:02:58]}  h6 {[%clk 0:03:01]} 7. h5 {[%clk 0:02:57]}  Bh7 {[%clk 0:03:00]} 8. Be3 {[%clk 0:02:53]}  Nge7 {[%clk 0:02:59]} 9. Bd3 {[%clk 0:02:48]}  Bxd3 {[%clk 0:02:51]} 10. Qxd3 {[%clk 0:02:48]}  Nb4 {[%clk 0:02:51]} 11. Qb5+ {[%clk 0:02:48]}  Nec6 {[%clk 0:02:51]} 12. Qa4 {[%clk 0:02:46]}  a6 {[%clk 0:02:40]} 13. c3 {[%clk 0:02:46]}  Nd3+ {[%clk 0:02:33]} 14. Ke2 {[%clk 0:02:46]}  Nxb2 {[%clk 0:02:34]} 15. Qb3 {[%clk 0:02:46]}  Nc4 {[%clk 0:02:34]} 16. Nd2 {[%clk 0:02:42]}  N6a5 {[%clk 0:02:32]} 17. Qc2 {[%clk 0:02:32]}  b5 {[%clk 0:02:26]} 18. Nb3 {[%clk 0:02:31]}  Nb7 {[%clk 0:02:20]} 19. f4 {[%clk 0:02:31]}  Be7 {[%clk 0:02:19]} 20. f5 {[%clk 0:02:30]}  Bg5 {[%clk 0:02:18]} 21. Bf2 {[%clk 0:02:15]}  O-O {[%clk 0:02:15]} 22. a4 {[%clk 0:02:11]}  c6 {[%clk 0:02:15]} 23. axb5 {[%clk 0:02:10]}  axb5 {[%clk 0:02:13]} 24. Rxa8 {[%clk 0:02:10]}  Qxa8 {[%clk 0:02:14]} 25. Ra1 {[%clk 0:02:07]}  Qd8 {[%clk 0:02:14]} 26. Kf3 {[%clk 0:02:03]}  f6 {[%clk 0:02:04]} 27. exf6 {[%clk 0:02:01]}  Qxf6 {[%clk 0:02:04]} 28. Ra7 {[%clk 0:01:59]}  Nbd6 {[%clk 0:02:02]} 29. Nc5 {[%clk 0:01:58]}  Nxf5 {[%clk 0:01:56]} 30. Nxf5 {[%clk 0:01:57]}  Qxf5+ {[%clk 0:01:56]} 31. Qxf5 {[%clk 0:01:56]}  Rxf5+ {[%clk 0:01:57]} 32. Ke2 {[%clk 0:01:56]}  e5 {[%clk 0:01:53]} 33. Ne6 {[%clk 0:01:51]}  Bf6 {[%clk 0:01:54]} 34. g4 {[%clk 0:01:50]}  Rxf2+ {[%clk 0:01:47]} 35. Kxf2 {[%clk 0:01:49]}  exd4 {[%clk 0:01:48]} 36. Nxd4 {[%clk 0:01:47]}  Ne5 {[%clk 0:01:42]} 37. Kg3 {[%clk 0:01:45]}  Kh7 {[%clk 0:01:09]} 38. Ra6 {[%clk 0:01:42]}  c5 {[%clk 0:01:06]} 39. Nxb5 {[%clk 0:01:42]}  Nf7 {[%clk 0:00:59]} 40. Rc6 {[%clk 0:01:33]}  Ng5 {[%clk 0:00:54]} 41. Kg2 {[%clk 0:01:31]}  Ne4 {[%clk 0:00:54]} 42. Rc7 {[%clk 0:01:28]}  c4 {[%clk 0:00:38]} 43. Rd7 {[%clk 0:01:25]}  Bxc3 {[%clk 0:00:33]} 44. Rxd5 {[%clk 0:01:25]}  Bf6 {[%clk 0:00:33]} 45. Kf3 {[%clk 0:01:22]}  Ng5+ {[%clk 0:00:31]} 46. Ke2 {[%clk 0:01:22]}  Ne6 {[%clk 0:00:30]} 47. Rd6 {[%clk 0:01:19]}  Nf4+ {[%clk 0:00:26]} 48. Kf3 {[%clk 0:01:18]}  Nd3 {[%clk 0:00:26]} 49. Ke4 {[%clk 0:01:14]}  Kg8 {[%clk 0:00:26]} 50. Rc6 {[%clk 0:01:13]}  Ne5 {[%clk 0:00:25]} 51. Rc8+ {[%clk 0:01:10]}  Kf7 {[%clk 0:00:26]} 52. Nd6+ {[%clk 0:01:10]}  Ke6 {[%clk 0:00:26]} 53. Nxc4 {[%clk 0:01:07]}  Nxg4 {[%clk 0:00:26]} 54. Rc6+ {[%clk 0:01:04]}  Kf7 {[%clk 0:00:24]} 55. Kf5 {[%clk 0:01:03]}  Nf2 {[%clk 0:00:19]} 56. Rc7+ {[%clk 0:01:03]}  Ke8 {[%clk 0:00:19]} 57. Ke6 {[%clk 0:01:02]}  Kd8 {[%clk 0:00:19]} 58. Rd7+ {[%clk 0:00:59]}  Kc8 {[%clk 0:00:19]} 59. Nd6+ {[%clk 0:00:59]}  Kb8 {[%clk 0:00:20]} 60. Ne8 {[%clk 0:00:59]}  Ne4 {[%clk 0:00:17]} 61. Nxg7 {[%clk 0:00:59]}  Nc5+ {[%clk 0:00:18]} 62. Kxf6 {[%clk 0:00:58]}  Nxd7+ {[%clk 0:00:18]} 63. Kg6 {[%clk 0:00:55]}  Kc7 {[%clk 0:00:16]} 64. Nf5 {[%clk 0:00:53]}  Kd8 {[%clk 0:00:15]} 65. Nxh6 {[%clk 0:00:52]}  Ke7 {[%clk 0:00:16]} 66. Kg7 {[%clk 0:00:49]}  Ke6 {[%clk 0:00:14]} 67. Ng8 {[%clk 0:00:48]}  Kf5 {[%clk 0:00:05]} 68. h6 {[%clk 0:00:48]}  Ne5 {[%clk 0:00:05]} 69. h7 {[%clk 0:00:47]}  Ng6 {[%clk 0:00:06]} 70. Ne7+ {[%clk 0:00:47]}  Nxe7 {[%clk 0:00:06]} 71. h8=Q {[%clk 0:00:47]} 1-0


[Site "https://www.chess.com"]

[Event "Titled Tuesday Blitz August 22 Early 2023"]
[White "Pavlidou, Ekaterini"]
[Black "brm72"]
[WhiteFideId "4213262"]
[WhiteElo "2338"]
[BlackElo "2578"]
[Result "1-0"]
[Round "3"]
[TimeControl "180+1"]
[Date "2023.08.22"]
[WhiteClock "0:00:55"]
[BlackClock "0:00:11"]
[Board "209"]

1. d4 {[%clk 0:02:57]}  Nf6 {[%clk 0:02:58]} 2. c4 {[%clk 0:02:56]}  g6 {[%clk 0:02:58]} 3. Nc3 {[%clk 0:02:55]}  d5 {[%clk 0:02:58]} 4. Nf3 {[%clk 0:02:54]}  Bg7 {[%clk 0:02:58]} 5. Bg5 {[%clk 0:02:54]}  Ne4 {[%clk 0:02:57]} 6. h4 {[%clk 0:02:54]}  Nxg5 {[%clk 0:02:46]} 7. hxg5 {[%clk 0:02:54]}  dxc4 {[%clk 0:02:45]} 8. e4 {[%clk 0:02:54]}  c5 {[%clk 0:02:45]} 9. d5 {[%clk 0:02:53]}  e6 {[%clk 0:02:45]} 10. Bxc4 {[%clk 0:02:53]}  exd5 {[%clk 0:02:45]} 11. Nxd5 {[%clk 0:02:50]}  O-O {[%clk 0:02:40]} 12. Qd2 {[%clk 0:02:37]}  Nc6 {[%clk 0:02:39]} 13. O-O-O {[%clk 0:02:35]}  Nd4 {[%clk 0:02:36]} 14. Nxd4 {[%clk 0:02:34]}  cxd4 {[%clk 0:02:37]} 15. Qf4 {[%clk 0:02:31]}  Be6 {[%clk 0:00:57]} 16. Nf6+ {[%clk 0:02:26]}  Bxf6 {[%clk 0:00:57]} 17. gxf6 {[%clk 0:02:26]}  Re8 {[%clk 0:00:33]} 18. Bxe6 {[%clk 0:02:06]}  Rxe6 {[%clk 0:00:34]} 19. Qh6 {[%clk 0:01:36]}  Rc8+ {[%clk 0:00:29]} 20. Kb1 {[%clk 0:01:36]}  Rxf6 {[%clk 0:00:29]} 21. Qxh7+ {[%clk 0:01:34]}  Kf8 {[%clk 0:00:30]} 22. e5 {[%clk 0:01:31]}  Rf4 {[%clk 0:00:29]} 23. g3 {[%clk 0:01:29]}  Rxf2 {[%clk 0:00:28]} 24. e6 {[%clk 0:01:10]}  Qb6 {[%clk 0:00:24]} 25. Rd2 {[%clk 0:01:00]}  Rf6 {[%clk 0:00:11]} 26. Qh8+ {[%clk 0:00:55]} 1-0


[Site "https://www.chess.com"]

[Event "Titled Tuesday Blitz August 22 Early 2023"]
[White "Shahaliyev, Ismayil"]
[Black "Mikhaylova, Irina"]
[WhiteFideId "13406388"]
[BlackFideId "4109040"]
[WhiteElo "2576"]
[BlackElo "2336"]
[Result "1-0"]
[Round "3"]
[TimeControl "180+1"]
[Date "2023.08.22"]
[WhiteClock "0:00:12"]
[BlackClock "0:00:00"]
[Board "210"]

1. e4 {[%clk 0:03:00]}  c5 {[%clk 0:03:00]} 2. Nf3 {[%clk 0:03:00]}  Nc6 {[%clk 0:03:00]} 3. Bb5 {[%clk 0:02:59]}  e6 {[%clk 0:03:00]} 4. Bxc6 {[%clk 0:02:59]}  bxc6 {[%clk 0:03:00]} 5. Qe2 {[%clk 0:02:59]}  f6 {[%clk 0:02:44]} 6. b3 {[%clk 0:02:57]}  e5 {[%clk 0:02:37]} 7. Nc3 {[%clk 0:02:55]}  d6 {[%clk 0:02:31]} 8. h3 {[%clk 0:02:36]}  Be6 {[%clk 0:02:22]} 9. d3 {[%clk 0:02:27]}  Ne7 {[%clk 0:02:20]} 10. O-O {[%clk 0:02:21]}  Ng6 {[%clk 0:02:18]} 11. Na4 {[%clk 0:02:18]}  Be7 {[%clk 0:02:11]} 12. c3 {[%clk 0:02:18]}  f5 {[%clk 0:01:26]} 13. exf5 {[%clk 0:01:55]}  Bxf5 {[%clk 0:01:26]} 14. d4 {[%clk 0:01:56]}  cxd4 {[%clk 0:01:26]} 15. cxd4 {[%clk 0:01:56]}  e4 {[%clk 0:01:26]} 16. Ne1 {[%clk 0:01:26]}  d5 {[%clk 0:01:14]} 17. Be3 {[%clk 0:01:13]}  O-O {[%clk 0:01:13]} 18. Rc1 {[%clk 0:01:13]}  Rc8 {[%clk 0:01:13]} 19. Qd2 {[%clk 0:01:09]}  Bd6 {[%clk 0:01:01]} 20. f4 {[%clk 0:01:04]}  exf3 {[%clk 0:00:50]} 21. Nxf3 {[%clk 0:01:04]}  Bb8 {[%clk 0:00:41]} 22. Nc5 {[%clk 0:00:53]}  Qd6 {[%clk 0:00:39]} 23. Nd3 {[%clk 0:00:51]}  Be4 {[%clk 0:00:29]} 24. Nde5 {[%clk 0:00:41]}  Nxe5 {[%clk 0:00:20]} 25. Nxe5 {[%clk 0:00:41]}  Qe6 {[%clk 0:00:14]} 26. Bf4 {[%clk 0:00:41]}  Bxe5 {[%clk 0:00:11]} 27. Bxe5 {[%clk 0:00:41]}  Qg6 {[%clk 0:00:12]} 28. Kh2 {[%clk 0:00:40]}  Rxf1 {[%clk 0:00:09]} 29. Rxf1 {[%clk 0:00:39]}  Rf8 {[%clk 0:00:10]} 30. Rxf8+ {[%clk 0:00:38]}  Kxf8 {[%clk 0:00:10]} 31. g4 {[%clk 0:00:38]}  Qf7 {[%clk 0:00:09]} 32. Qb4+ {[%clk 0:00:36]}  Ke8 {[%clk 0:00:09]} 33. Qb8+ {[%clk 0:00:35]}  Kd7 {[%clk 0:00:10]} 34. Qxa7+ {[%clk 0:00:36]}  Ke6 {[%clk 0:00:09]} 35. Qxf7+ {[%clk 0:00:32]}  Kxf7 {[%clk 0:00:10]} 36. Kg3 {[%clk 0:00:31]}  Bd3 {[%clk 0:00:08]} 37. h4 {[%clk 0:00:31]}  g6 {[%clk 0:00:09]} 38. Kf4 {[%clk 0:00:31]}  Ke6 {[%clk 0:00:09]} 39. Kg5 {[%clk 0:00:30]}  Be2 {[%clk 0:00:08]} 40. a4 {[%clk 0:00:24]}  c5 {[%clk 0:00:08]} 41. Kf4 {[%clk 0:00:20]}  cxd4 {[%clk 0:00:06]} 42. Bxd4 {[%clk 0:00:20]}  Bd1 {[%clk 0:00:07]} 43. a5 {[%clk 0:00:20]}  Bxb3 {[%clk 0:00:07]} 44. a6 {[%clk 0:00:21]}  Ba4 {[%clk 0:00:07]} 45. a7 {[%clk 0:00:21]}  Bc6 {[%clk 0:00:08]} 46. Kg5 {[%clk 0:00:22]}  Kf7 {[%clk 0:00:08]} 47. Kh6 {[%clk 0:00:22]}  Kg8 {[%clk 0:00:08]} 48. Bc5 {[%clk 0:00:20]}  Ba8 {[%clk 0:00:08]} 49. Kg5 {[%clk 0:00:20]}  Kf7 {[%clk 0:00:08]} 50. Kh6 {[%clk 0:00:20]}  Kg8 {[%clk 0:00:08]} 51. Bd4 {[%clk 0:00:20]}  Bb7 {[%clk 0:00:08]} 52. Bc3 {[%clk 0:00:20]}  Ba8 {[%clk 0:00:08]} 53. Bd2 {[%clk 0:00:18]}  Bb7 {[%clk 0:00:09]} 54. Bf4 {[%clk 0:00:18]}  Ba8 {[%clk 0:00:09]} 55. Be5 {[%clk 0:00:18]}  Bb7 {[%clk 0:00:09]} 56. Ba1 {[%clk 0:00:19]}  Ba8 {[%clk 0:00:09]} 57. Kg5 {[%clk 0:00:19]}  Kf7 {[%clk 0:00:09]} 58. Bb2 {[%clk 0:00:20]}  Bb7 {[%clk 0:00:09]} 59. Kf4 {[%clk 0:00:20]}  Ke6 {[%clk 0:00:08]} 60. Ke3 {[%clk 0:00:20]}  Kd6 {[%clk 0:00:08]} 61. Ba3+ {[%clk 0:00:19]}  Kc6 {[%clk 0:00:07]} 62. Kd4 {[%clk 0:00:19]}  Ba8 {[%clk 0:00:06]} 63. Bc5 {[%clk 0:00:16]}  Kb5 {[%clk 0:00:06]} 64. Bd6 {[%clk 0:00:16]}  Kc6 {[%clk 0:00:06]} 65. Bf4 {[%clk 0:00:14]}  Kb6 {[%clk 0:00:04]} 66. Bb8 {[%clk 0:00:14]}  Kc6 {[%clk 0:00:05]} 67. Ke5 {[%clk 0:00:15]}  Kc5 {[%clk 0:00:05]} 68. Bd6+ {[%clk 0:00:15]}  Kc4 {[%clk 0:00:05]} 69. Kf6 {[%clk 0:00:14]}  d4 {[%clk 0:00:06]} 70. Kg7 {[%clk 0:00:14]}  d3 {[%clk 0:00:06]} 71. Bf4 {[%clk 0:00:15]}  h5 {[%clk 0:00:06]} 72. g5 {[%clk 0:00:13]}  Be4 {[%clk 0:00:05]} 73. a8=Q {[%clk 0:00:12]}  Bxa8 {[%clk 0:00:05]} 74. Kxg6 {[%clk 0:00:13]}  Bf3 {[%clk 0:00:04]} 75. Kf7 {[%clk 0:00:11]}  Kc3 {[%clk 0:00:04]} 76. g6 {[%clk 0:00:11]}  d2 {[%clk 0:00:04]} 77. Bxd2+ {[%clk 0:00:11]}  Kxd2 {[%clk 0:00:05]} 78. g7 {[%clk 0:00:12]}  Ke3 {[%clk 0:00:05]} 79. Kg6 {[%clk 0:00:11]}  Bd5 {[%clk 0:00:05]} 80. Kxh5 {[%clk 0:00:12]}  Kf4 {[%clk 0:00:05]} 81. Kg6 {[%clk 0:00:12]}  Be4+ {[%clk 0:00:03]} 82. Kf7 {[%clk 0:00:11]}  Bd5+ {[%clk 0:00:03]} 83. Kg6 {[%clk 0:00:10]}  Be4+ {[%clk 0:00:04]} 84. Kf6 {[%clk 0:00:10]}  Bd5 {[%clk 0:00:03]} 85. h5 {[%clk 0:00:10]}  Bg8 {[%clk 0:00:01]} 86. h6 {[%clk 0:00:11]}  Kg4 {[%clk 0:00:01]} 87. Kg6 {[%clk 0:00:12]}  Kf4 {[%clk 0:00:00]} 88. h7 {[%clk 0:00:12]} 1-0


[Site "https://www.chess.com"]

[Event "Titled Tuesday Blitz August 22 Early 2023"]
[White "Vaglio Munoz, Jaime"]
[Black "Martins, Bruno Andre Leite"]
[WhiteFideId "6500145"]
[BlackFideId "1942255"]
[WhiteElo "2332"]
[BlackElo "2570"]
[Result "1-0"]
[Round "3"]
[TimeControl "180+1"]
[Date "2023.08.22"]
[WhiteClock "0:00:44"]
[BlackClock "0:00:00"]
[Board "211"]

1. Nf3 {[%clk 0:03:00]}  Nf6 {[%clk 0:03:00]} 2. c4 {[%clk 0:03:01]}  g6 {[%clk 0:03:00]} 3. b3 {[%clk 0:03:01]}  Bg7 {[%clk 0:03:00]} 4. Bb2 {[%clk 0:03:02]}  O-O {[%clk 0:03:01]} 5. g3 {[%clk 0:03:02]}  d6 {[%clk 0:03:01]} 6. d4 {[%clk 0:03:01]}  b6 {[%clk 0:02:53]} 7. Bg2 {[%clk 0:03:01]}  Bb7 {[%clk 0:02:53]} 8. O-O {[%clk 0:03:01]}  Nbd7 {[%clk 0:02:53]} 9. Re1 {[%clk 0:03:01]}  Re8 {[%clk 0:02:51]} 10. d5 {[%clk 0:03:00]}  a5 {[%clk 0:02:46]} 11. a3 {[%clk 0:02:57]}  e6 {[%clk 0:02:37]} 12. dxe6 {[%clk 0:02:54]}  fxe6 {[%clk 0:02:37]} 13. Nbd2 {[%clk 0:02:53]}  e5 {[%clk 0:02:34]} 14. e4 {[%clk 0:02:52]}  Nc5 {[%clk 0:02:33]} 15. Qc2 {[%clk 0:02:42]}  Qd7 {[%clk 0:02:23]} 16. Ng5 {[%clk 0:02:37]}  h6 {[%clk 0:02:10]} 17. Bh3 {[%clk 0:02:36]}  Qe7 {[%clk 0:01:59]} 18. Ngf3 {[%clk 0:02:34]}  g5 {[%clk 0:01:55]} 19. Bf1 {[%clk 0:02:29]}  Ne6 {[%clk 0:01:54]} 20. b4 {[%clk 0:02:27]}  axb4 {[%clk 0:01:52]} 21. axb4 {[%clk 0:02:28]}  Kh7 {[%clk 0:01:48]} 22. Rac1 {[%clk 0:02:13]}  Ra2 {[%clk 0:01:45]} 23. Qb3 {[%clk 0:02:13]}  Rea8 {[%clk 0:01:45]} 24. h4 {[%clk 0:02:05]}  g4 {[%clk 0:01:43]} 25. Nh2 {[%clk 0:02:03]}  Nd4 {[%clk 0:01:39]} 26. Bxd4 {[%clk 0:02:03]}  Rxd2 {[%clk 0:01:35]} 27. Bc3 {[%clk 0:01:34]}  Rda2 {[%clk 0:01:34]} 28. Bb2 {[%clk 0:01:32]}  Qf7 {[%clk 0:01:24]} 29. Bd3 {[%clk 0:01:26]}  b5 {[%clk 0:01:16]} 30. Qc3 {[%clk 0:01:20]}  c6 {[%clk 0:00:48]} 31. Bb1 {[%clk 0:01:18]}  R2a4 {[%clk 0:00:42]} 32. c5 {[%clk 0:01:13]}  dxc5 {[%clk 0:00:37]} 33. Qxe5 {[%clk 0:01:13]}  cxb4 {[%clk 0:00:25]} 34. Qf5+ {[%clk 0:01:10]}  Qg6 {[%clk 0:00:24]} 35. e5 {[%clk 0:01:08]}  Qxf5 {[%clk 0:00:06]} 36. Bxf5+ {[%clk 0:01:09]}  Kg8 {[%clk 0:00:06]} 37. exf6 {[%clk 0:01:09]}  Bf8 {[%clk 0:00:05]} 38. Be6+ {[%clk 0:01:00]}  Kh8 {[%clk 0:00:04]} 39. Nxg4 {[%clk 0:00:56]}  c5 {[%clk 0:00:03]} 40. Rcd1 {[%clk 0:00:53]}  c4 {[%clk 0:00:02]} 41. Be5 {[%clk 0:00:49]}  c3 {[%clk 0:00:01]} 42. Rd7 {[%clk 0:00:47]}  Be4 {[%clk 0:00:00]} 43. Rxe4 {[%clk 0:00:44]} 1-0


[Site "https://www.chess.com"]

[Event "Titled Tuesday Blitz August 22 Early 2023"]
[White "Goswami, Vedant"]
[Black "Najdin, Danil"]
[WhiteFideId "5003725"]
[BlackFideId "4172426"]
[WhiteElo "2319"]
[BlackElo "2538"]
[Result "0-1"]
[Round "3"]
[TimeControl "180+1"]
[Date "2023.08.22"]
[WhiteClock "0:00:00"]
[BlackClock "0:00:41"]
[Board "214"]

1. e4 {[%clk 0:02:55]}  g6 {[%clk 0:02:55]} 2. d4 {[%clk 0:02:54]}  Bg7 {[%clk 0:02:55]} 3. Nf3 {[%clk 0:02:54]}  c6 {[%clk 0:02:55]} 4. Nc3 {[%clk 0:02:55]}  d5 {[%clk 0:02:55]} 5. e5 {[%clk 0:02:55]}  f6 {[%clk 0:02:51]} 6. Bf4 {[%clk 0:02:50]}  Bg4 {[%clk 0:02:49]} 7. h3 {[%clk 0:02:47]}  Bxf3 {[%clk 0:02:48]} 8. Qxf3 {[%clk 0:02:48]}  fxe5 {[%clk 0:02:46]} 9. Bxe5 {[%clk 0:02:40]}  Bxe5 {[%clk 0:02:45]} 10. dxe5 {[%clk 0:02:40]}  e6 {[%clk 0:02:44]} 11. Qg4 {[%clk 0:02:27]}  Qe7 {[%clk 0:02:40]} 12. Bd3 {[%clk 0:02:24]}  Nd7 {[%clk 0:02:39]} 13. f4 {[%clk 0:02:24]}  Nh6 {[%clk 0:02:29]} 14. Qe2 {[%clk 0:02:09]}  Qb4 {[%clk 0:02:23]} 15. O-O {[%clk 0:02:00]}  Qxb2 {[%clk 0:02:22]} 16. Qd2 {[%clk 0:01:39]}  Qb6+ {[%clk 0:02:15]} 17. Kh2 {[%clk 0:01:37]}  Qa5 {[%clk 0:01:59]} 18. Rab1 {[%clk 0:01:33]}  Nc5 {[%clk 0:01:58]} 19. Rf2 {[%clk 0:00:51]}  O-O-O {[%clk 0:01:48]} 20. g4 {[%clk 0:00:31]}  d4 {[%clk 0:01:33]} 21. Ne4 {[%clk 0:00:29]}  Qxd2 {[%clk 0:01:33]} 22. Nxd2 {[%clk 0:00:29]}  Nf7 {[%clk 0:01:29]} 23. Rb4 {[%clk 0:00:20]}  g5 {[%clk 0:01:21]} 24. Nf3 {[%clk 0:00:12]}  gxf4 {[%clk 0:01:19]} 25. Rxd4 {[%clk 0:00:11]}  Rxd4 {[%clk 0:01:06]} 26. Nxd4 {[%clk 0:00:11]}  Nxe5 {[%clk 0:01:04]} 27. Rxf4 {[%clk 0:00:10]}  Rd8 {[%clk 0:01:02]} 28. Nb3 {[%clk 0:00:01]}  Ncxd3 {[%clk 0:00:53]} 29. cxd3 {[%clk 0:00:01]}  Rxd3 {[%clk 0:00:54]} 30. Rf6 {[%clk 0:00:00]}  Ng6 {[%clk 0:00:41]} 0-1


[Site "https://www.chess.com"]

[Event "Titled Tuesday Blitz August 22 Early 2023"]
[White "Davidson, Kevin"]
[Black "NigelDwarf"]
[WhiteFideId "2056810"]
[WhiteElo "2317"]
[BlackElo "2529"]
[Result "0-1"]
[Round "3"]
[TimeControl "180+1"]
[Date "2023.08.22"]
[WhiteClock "0:00:00"]
[BlackClock "0:00:06"]
[Board "215"]

1. e4 {[%clk 0:02:58]}  c5 {[%clk 0:03:00]} 2. Nf3 {[%clk 0:02:58]}  d6 {[%clk 0:03:00]} 3. d4 {[%clk 0:02:58]}  Nf6 {[%clk 0:03:00]} 4. Nc3 {[%clk 0:02:57]}  cxd4 {[%clk 0:03:01]} 5. Nxd4 {[%clk 0:02:56]}  a6 {[%clk 0:03:01]} 6. h3 {[%clk 0:02:55]}  e6 {[%clk 0:03:00]} 7. g4 {[%clk 0:02:54]}  Be7 {[%clk 0:03:01]} 8. g5 {[%clk 0:02:54]}  Nfd7 {[%clk 0:03:00]} 9. h4 {[%clk 0:02:54]}  b5 {[%clk 0:03:00]} 10. Bg2 {[%clk 0:02:39]}  b4 {[%clk 0:03:00]} 11. Na4 {[%clk 0:02:35]}  Bb7 {[%clk 0:02:59]} 12. b3 {[%clk 0:02:22]}  Nc5 {[%clk 0:02:51]} 13. Bb2 {[%clk 0:02:07]}  Nxe4 {[%clk 0:02:28]} 14. O-O {[%clk 0:01:52]}  O-O {[%clk 0:02:19]} 15. Re1 {[%clk 0:01:38]}  d5 {[%clk 0:02:16]} 16. c4 {[%clk 0:01:25]}  bxc3 {[%clk 0:02:07]} 17. Nxc3 {[%clk 0:01:24]}  Nd6 {[%clk 0:01:28]} 18. Rc1 {[%clk 0:01:04]}  Nd7 {[%clk 0:01:18]} 19. Na4 {[%clk 0:00:47]}  Rc8 {[%clk 0:01:06]} 20. Qe2 {[%clk 0:00:46]}  e5 {[%clk 0:00:54]} 21. Bh3 {[%clk 0:00:22]}  Rxc1 {[%clk 0:00:50]} 22. Bxc1 {[%clk 0:00:22]}  Re8 {[%clk 0:00:30]} 23. Nf5 {[%clk 0:00:13]}  Nxf5 {[%clk 0:00:29]} 24. Bxf5 {[%clk 0:00:14]}  Bd6 {[%clk 0:00:23]} 25. Bb2 {[%clk 0:00:12]}  f6 {[%clk 0:00:17]} 26. Qh5 {[%clk 0:00:11]}  Nf8 {[%clk 0:00:17]} 27. g6 {[%clk 0:00:01]}  hxg6 {[%clk 0:00:15]} 28. Bxg6 {[%clk 0:00:01]}  Nxg6 {[%clk 0:00:15]} 29. Qxg6 {[%clk 0:00:02]}  Qd7 {[%clk 0:00:09]} 30. Rc1 {[%clk 0:00:02]}  d4 {[%clk 0:00:06]} 31. Nc5 {[%clk 0:00:01]}  Bxc5 {[%clk 0:00:05]} 32. Rxc5 {[%clk 0:00:01]}  Rc8 {[%clk 0:00:06]} 33. Rc7 {[%clk 0:00:01]}  Rxc7 {[%clk 0:00:06]} 34. h5 {[%clk 0:00:02]}  Qf7 {[%clk 0:00:06]} 35. Qg4 {[%clk 0:00:02]}  f5 {[%clk 0:00:06]} 36. Qg5 {[%clk 0:00:02]}  d3 {[%clk 0:00:07]} 37. h6 {[%clk 0:00:00]}  Rc6 {[%clk 0:00:06]} 0-1


[Site "https://www.chess.com"]

[Event "Titled Tuesday Blitz August 22 Early 2023"]
[White "Bifulco, Michel"]
[Black "Rizzo, Tobias"]
[WhiteFideId "828580"]
[BlackFideId "30942691"]
[WhiteElo "2313"]
[BlackElo "2503"]
[Result "1-0"]
[Round "3"]
[TimeControl "180+1"]
[Date "2023.08.22"]
[WhiteClock "0:00:26"]
[BlackClock "0:00:00"]
[Board "217"]

1. d4 {[%clk 0:03:00]}  Nf6 {[%clk 0:02:59]} 2. c4 {[%clk 0:03:01]}  g6 {[%clk 0:03:00]} 3. Nc3 {[%clk 0:03:01]}  d5 {[%clk 0:03:00]} 4. Bf4 {[%clk 0:02:59]}  Bg7 {[%clk 0:03:00]} 5. e3 {[%clk 0:02:59]}  O-O {[%clk 0:03:00]} 6. cxd5 {[%clk 0:02:57]}  Nxd5 {[%clk 0:03:01]} 7. Nxd5 {[%clk 0:02:56]}  Qxd5 {[%clk 0:03:02]} 8. Bxc7 {[%clk 0:02:56]}  Na6 {[%clk 0:02:55]} 9. Bxa6 {[%clk 0:02:56]}  bxa6 {[%clk 0:02:56]} 10. Nf3 {[%clk 0:02:47]}  Bb7 {[%clk 0:02:39]} 11. O-O {[%clk 0:02:45]}  Rac8 {[%clk 0:02:39]} 12. Bg3 {[%clk 0:02:38]}  Rc4 {[%clk 0:02:08]} 13. b3 {[%clk 0:02:36]}  Rc3 {[%clk 0:02:06]} 14. Rc1 {[%clk 0:02:35]}  Rfc8 {[%clk 0:02:06]} 15. Qd2 {[%clk 0:02:35]}  Qa5 {[%clk 0:01:51]} 16. Rxc3 {[%clk 0:02:31]}  Qxc3 {[%clk 0:01:52]} 17. Qxc3 {[%clk 0:02:20]}  Rxc3 {[%clk 0:01:53]} 18. Be5 {[%clk 0:02:14]}  Bxf3 {[%clk 0:01:50]} 19. gxf3 {[%clk 0:02:10]}  Bxe5 {[%clk 0:01:50]} 20. dxe5 {[%clk 0:02:11]}  Rc2 {[%clk 0:01:49]} 21. Ra1 {[%clk 0:02:10]}  Rb2 {[%clk 0:01:43]} 22. f4 {[%clk 0:02:09]}  f5 {[%clk 0:01:27]} 23. exf6 {[%clk 0:02:08]}  exf6 {[%clk 0:01:28]} 24. Kg2 {[%clk 0:02:08]}  Kf7 {[%clk 0:01:28]} 25. Kf3 {[%clk 0:02:08]}  Ke6 {[%clk 0:01:29]} 26. h4 {[%clk 0:02:08]}  f5 {[%clk 0:01:19]} 27. h5 {[%clk 0:02:01]}  Kf6 {[%clk 0:01:02]} 28. hxg6 {[%clk 0:02:01]}  hxg6 {[%clk 0:01:03]} 29. Rc1 {[%clk 0:01:56]}  Rxa2 {[%clk 0:01:01]} 30. Rc6+ {[%clk 0:01:55]}  Kf7 {[%clk 0:01:00]} 31. Rc7+ {[%clk 0:01:55]}  Kf6 {[%clk 0:01:00]} 32. Rxa7 {[%clk 0:01:55]}  Ra3 {[%clk 0:00:55]} 33. b4 {[%clk 0:01:55]}  Ra4 {[%clk 0:00:55]} 34. Rb7 {[%clk 0:01:52]}  a5 {[%clk 0:00:50]} 35. Rb6+ {[%clk 0:01:42]}  Kf7 {[%clk 0:00:50]} 36. bxa5 {[%clk 0:01:19]}  Rxa5 {[%clk 0:00:50]} 37. Rb2 {[%clk 0:01:19]}  Ra4 {[%clk 0:00:49]} 38. Kg3 {[%clk 0:01:19]}  Kf6 {[%clk 0:00:49]} 39. Kh4 {[%clk 0:01:19]}  Ra6 {[%clk 0:00:46]} 40. Rb3 {[%clk 0:01:15]}  Rc6 {[%clk 0:00:45]} 41. f3 {[%clk 0:01:15]}  Re6 {[%clk 0:00:45]} 42. Ra3 {[%clk 0:01:13]}  Rb6 {[%clk 0:00:37]} 43. e4 {[%clk 0:01:13]}  fxe4 {[%clk 0:00:36]} 44. fxe4 {[%clk 0:01:13]}  Rb4 {[%clk 0:00:36]} 45. Re3 {[%clk 0:01:04]}  Rb5 {[%clk 0:00:33]} 46. Kg4 {[%clk 0:01:03]}  Rb6 {[%clk 0:00:27]} 47. e5+ {[%clk 0:01:00]}  Kf7 {[%clk 0:00:15]} 48. Ra3 {[%clk 0:00:55]}  Rb7 {[%clk 0:00:15]} 49. Kg5 {[%clk 0:00:55]}  Kg7 {[%clk 0:00:14]} 50. Ra6 {[%clk 0:00:54]}  Rf7 {[%clk 0:00:14]} 51. Rxg6+ {[%clk 0:00:54]}  Kh7 {[%clk 0:00:15]} 52. Rf6 {[%clk 0:00:52]}  Rg7+ {[%clk 0:00:15]} 53. Kf5 {[%clk 0:00:52]}  Kg8 {[%clk 0:00:14]} 54. e6 {[%clk 0:00:51]}  Re7 {[%clk 0:00:14]} 55. Ke5 {[%clk 0:00:48]}  Ra7 {[%clk 0:00:13]} 56. Rg6+ {[%clk 0:00:44]}  Kf8 {[%clk 0:00:10]} 57. Rh6 {[%clk 0:00:38]}  Kg7 {[%clk 0:00:09]} 58. Rh1 {[%clk 0:00:37]}  Ra5+ {[%clk 0:00:08]} 59. Kd6 {[%clk 0:00:31]}  Ra6+ {[%clk 0:00:09]} 60. Kd5 {[%clk 0:00:29]}  Ra5+ {[%clk 0:00:09]} 61. Ke4 {[%clk 0:00:30]}  Kf6 {[%clk 0:00:08]} 62. Rh6+ {[%clk 0:00:29]}  Ke7 {[%clk 0:00:08]} 63. f5 {[%clk 0:00:28]}  Ra4+ {[%clk 0:00:09]} 64. Kf3 {[%clk 0:00:28]}  Ra3+ {[%clk 0:00:09]} 65. Kg4 {[%clk 0:00:28]}  Ra4+ {[%clk 0:00:07]} 66. Kg5 {[%clk 0:00:28]}  Ra1 {[%clk 0:00:05]} 67. Rh7+ {[%clk 0:00:28]}  Ke8 {[%clk 0:00:04]} 68. Kf6 {[%clk 0:00:28]}  Kd8 {[%clk 0:00:03]} 69. Rh8+ {[%clk 0:00:26]}  Kc7 {[%clk 0:00:03]} 70. e7 {[%clk 0:00:26]}  Ra6+ {[%clk 0:00:00]} 71. Kf7 {[%clk 0:00:26]} 1-0


[Site "https://www.chess.com"]